bitfinex-derivatives/quotes_ETHF0:USTF0_20250309
["timestamp","ask_amount","ask_price","bid_price","bid_amount"]
[1741554289924,0.00734035,2043.6,2043.3,0.6171]
[1741554290125,0.97879,2043.5,2043.3,0.6171]
[1741554290323,0.98610035,2043.6,2043.4,0.97883]
[1741554290825,0.00734035,2043.6,2043.3,0.6171]
[1741554291025,0.98609035,2043.6,2043.4,0.9788]
[1741554291721,0.00734035,2043.6,2043.5,0.97879]
[1741554292427,0.00734035,2043.6,2043.3,0.6171]
[1741554292627,0.00734035,2043.6,2043.4,0.97883]
[1741554292817,0.98610035,2043.6,2043.4,0.97883]
[1741554293131,0.00734035,2043.6,2043.5,0.97879]
[1741554294020,0.97883,2043.5,2043.3,1.59597]
[1741554294225,0.98610035,2043.6,2043.4,0.97883]
[1741554294628,0.9788,2043.5,2043.3,0.6171]
[1741554294815,0.9788,2043.5,2043.3,1.59594]
[1741554295019,0.98610035,2043.6,2043.4,0.97883]
[1741554295222,0.98610035,2043.6,2043.5,0.97879]
[1741554295418,0.00734035,2043.6,2043.5,0.97879]
[1741554295629,0.00734035,2043.6,2043.5,4.18659]
[1741554300228,0.00734035,2043.6,2043.3,6.40058295]
[1741554300229,2.45421035,2043.6,2043.3,0.6171]
[1741554300426,0.97883,2043.4,2043.3,0.6171]
[1741554300929,0.00734035,2043.6,2043.2,0.6288]
[1741554301132,0.00734035,2043.6,2042.8,2.9674]
[1741554301133,0.97903,2043.0,2042.9,0.6442]
[1741554301432,3.2078,2043.3,2042.9,0.6442]
[1741554301727,0.97901,2043.1,2042.9,1.62326]
[1741554302130,3.2078,2043.3,2042.7,3.8419]
[1741554302322,0.97903,2043.0,2042.9,0.97906]
[1741554302522,0.97902,2043.1,2042.9,0.97906]
[1741554302729,3.2078,2043.3,2042.8,3.2078]
[1741554302928,0.97906,2043.0,2042.8,4.18688]
[1741554303127,0.97907,2042.9,2042.8,3.2078]
[1741554303432,0.6099,2043.4,2042.6,0.00494183]
[1741554303433,0.97917,2042.7,2042.6,0.00494183]
[1741554305833,3.2078,2043.0,2042.6,0.98413183]
[1741554306033,3.2078,2043.0,2042.6,0.00494183]
[1741554306235,0.97896,2043.2,2043.0,0.979]
[1741554306434,3.8192,2043.3,2042.9,0.97904]
[1741554306632,3.8192,2043.3,2042.7,3.2078]
[1741554306833,0.97895,2043.2,2043.0,0.97898]
[1741554307133,3.8192,2043.3,2042.8,0.6213]
[1741554307336,3.8192,2043.3,2042.9,0.97907]
[1741554307635,0.97894,2043.2,2043.1,0.97897]
[1741554308028,3.8192,2043.3,2042.9,0.6645]
[1741554308228,0.97912,2042.8,2042.7,3.2078]
[1741554308429,0.97912,2042.8,2042.7,4.18697]
[1741554308631,0.97912,2042.8,2042.7,3.2078]
[1741554308830,3.8192,2043.3,2042.8,0.9791]
[1741554308831,0.97906,2043.0,2042.8,0.9791]
[1741554309034,3.8192,2043.3,2042.6,0.00494183]
[1741554309233,0.97914,2042.8,2042.7,0.97917]
[1741554309439,3.8192,2043.3,2042.6,0.00494183]
[1741554309634,0.97912,2042.8,2042.7,0.97915]
[1741554310337,2.44737,2043.2,2042.6,0.00494183]
[1741554310535,0.97913,2042.8,2042.6,0.98414183]
[1741554310737,0.97913,2042.8,2042.6,0.00494183]
[1741554311043,2.44737,2043.2,2042.6,0.00494183]
[1741554311044,2.44737,2043.2,2042.8,0.9791]
[1741554311240,2.44745,2043.1,2042.6,3.21274183]
[1741554311439,0.97917,2042.7,2042.6,3.21274183]
[1741554312537,1.2992,2042.8,2042.6,3.21274183]
[1741554312743,3.8319,2043.3,2042.6,3.21274183]
[1741554312939,3.8319,2043.3,2042.7,0.6182]
[1741554313145,4.1867,2043.3,2043.1,0.97895]
[1741554313741,1.277,2043.5,2042.9,3.2078]
[1741554314039,0.97883,2043.4,2042.9,3.2078]
[1741554314344,0.97883,2043.4,2043.2,0.97888]
[1741554314542,1.277,2043.5,2042.9,3.2078]
[1741554314744,0.97895,2043.2,2042.9,3.2078]
[1741554314949,1.277,2043.5,2043.0,4.89514]
[1741554315138,1.59009,2043.5,2043.4,0.97883]
[1741554315443,0.97881,2043.5,2043.4,0.97883]
[1741554315945,3.21514035,2043.6,2043.3,0.97885]
[1741554316143,0.9788,2043.5,2043.4,0.97883]
[1741554316343,5.66209035,2043.6,2043.1,0.6367]
[1741554316645,0.97881,2043.5,2043.0,3.2078]
[1741554316846,0.97886,2043.4,2043.0,3.2078]
[1741554317047,0.97886,2043.4,2043.2,0.9789]
[1741554317635,3.21514035,2043.6,2043.0,3.2078]
[1741554317937,0.9789,2043.3,2043.1,0.97894]
[1741554318142,0.9789,2043.3,2043.2,0.97893]
[1741554318340,3.21514035,2043.6,2043.0,3.2078]
[1741554318851,0.97879,2043.5,2043.3,0.97885]
[1741554319155,0.97879,2043.5,2043.0,6.28054]
[1741554319350,0.97886,2043.4,2043.2,0.97888]
[1741554319651,3.21514035,2043.6,2043.3,0.97888]
[1741554319847,4.19389035,2043.6,2043.5,0.97879]
[1741554320049,0.98609035,2043.6,2043.5,0.97879]
[1741554320850,0.00734035,2043.6,2043.2,0.6483]
[1741554321047,0.97882,2043.5,2043.3,0.97888]
[1741554321237,0.00734035,2043.6,2043.2,0.6483]
[1741554321445,0.98608035,2043.6,2043.5,0.97879]
[1741554321647,0.98611035,2043.6,2043.4,0.97881]
[1741554321847,0.98611035,2043.6,2043.5,0.97879]
[1741554322043,0.98611035,2043.6,2043.4,0.9788]
[1741554322243,0.97885,2043.4,2043.3,0.97887]
[1741554322450,0.97881,2043.5,2043.4,0.97883]
[1741554322949,4.19390035,2043.6,2043.5,0.97879]
[1741554323148,0.98610035,2043.6,2043.4,0.97879]
[1741554323449,0.98610035,2043.6,2043.5,0.97879]
[1741554323846,0.97882,2043.5,2043.4,0.97882]
[1741554324149,0.9788,2043.5,2043.4,0.97881]
[1741554324342,0.97879,2043.5,2043.2,0.6483]
[1741554324546,0.97884,2043.4,2043.3,0.97885]
[1741554324948,0.00734035,2043.6,2043.2,0.6483]
[1741554325352,0.97879,2043.5,2043.2,0.6483]
[1741554325552,0.97879,2043.5,2043.3,0.97888]
[1741554325853,0.97879,2043.5,2043.2,0.6483]
[1741554325854,0.97879,2043.5,2043.4,0.97883]
[1741554326856,0.00734035,2043.6,2043.2,0.6483]
[1741554327351,0.97882,2043.5,2043.4,0.97882]
[1741554328451,0.00734035,2043.6,2043.5,0.97879]
[1741554328659,0.98608035,2043.6,2043.5,0.97879]
[1741554329155,0.97881,2043.5,2043.4,0.9788]
[1741554329453,0.98612035,2043.6,2043.5,0.97879]
[1741554329647,0.00734035,2043.6,2043.2,0.6483]
[1741554329843,5.65477,2043.5,2043.1,0.97895]
[1741554330047,3.2078,2043.5,2043.0,6.1568]
[1741554330247,0.97898,2043.1,2043.0,6.1568]
[1741554330956,0.97896,2043.2,2043.0,6.1568]
[1741554331151,0.97898,2043.1,2043.0,7.1358]
[1741554331347,3.2078,2043.2,2042.6,0.00494183]
[1741554331550,0.97917,2042.7,2042.6,0.00494183]
[1741554331951,2.44811,2042.6,2041.8,3.2078]
[1741554332254,0.9796,2041.9,2041.5,8.0581]
[1741554332443,3.2078,2042.1,2041.5,6.08884]
[1741554332646,0.97954,2042.0,2041.5,6.08884]
[1741554332842,3.2078,2042.1,2041.5,6.08884]
[1741554333047,0.00734035,2042.0,2041.5,5.11644035]
[1741554333558,0.97963,2041.8,2041.5,5.11644035]
[1741554334150,0.00734035,2042.0,2041.5,5.11644035]
[1741554334353,0.97957,2041.9,2041.5,6.09616035]
[1741554334654,0.9797,2041.6,2041.5,0.66654035]
[1741554336561,0.9797,2041.6,2041.5,0.00734035]
[1741554336747,3.2078,2041.8,2041.5,0.00734035]
[1741554336953,0.9797,2041.6,2041.5,0.00734035]
[1741554337255,2.45617035,2042.0,2041.5,0.00734035]
[1741554337256,0.00734035,2042.0,2041.5,0.00734035]
[1741554337761,0.97966,2041.7,2041.5,0.98706035]
[1741554338265,0.97966,2041.7,2041.5,0.00734035]
[1741554338648,0.97966,2041.7,2041.5,0.98706035]
[1741554338855,0.00734035,2042.0,2041.6,0.9797]
[1741554339157,0.00734035,2042.0,2041.9,0.97955]
[1741554339551,0.00734035,2042.0,2041.9,4.18735]
[1741554339858,0.9794,2042.3,2042.1,0.97944]
[1741554340061,0.97941,2042.2,2042.1,0.97944]
[1741554340263,2.4481,2042.6,2042.1,0.97944]
[1741554340562,2.4481,2042.6,2042.0,0.6665]
[1741554340563,0.97946,2042.1,2042.0,0.6665]
[1741554340765,3.2078,2042.4,2042.0,0.6665]
[1741554340962,0.97945,2042.2,2042.0,0.6665]
[1741554341258,3.2078,2042.4,2042.0,1.64599]
[1741554341465,0.97946,2042.1,2042.0,0.6665]
[1741554342157,0.97965,2041.7,2041.6,0.6665]
[1741554342463,0.9797,2041.6,2041.5,0.00734035]
[1741554344268,1.63248,2041.7,2041.5,0.98706035]
[1741554344460,3.2078,2042.0,2041.7,0.97964]
[1741554344758,3.2078,2042.0,2041.7,0.97962]
[1741554345064,0.97957,2041.9,2041.7,0.97962]
[1741554345268,0.6528,2042.2,2041.6,0.6583]
[1741554345466,0.6377,2042.5,2041.9,2.44885]
[1741554345662,5.51214035,2042.6,2041.7,3.8222]
[1741554345869,0.97943,2042.2,2042.0,0.97948]
[1741554346663,7.96025035,2042.6,2041.7,6.27129]
[1741554346664,5.51214035,2042.6,2041.7,6.27129]
[1741554346864,0.97941,2042.2,2042.1,0.97944]
[1741554347961,0.97949,2042.1,2041.8,3.6144]
[1741554348163,2.44822,2042.5,2041.8,2.949]
[1741554348468,0.97945,2042.2,2042.0,0.97948]
[1741554348971,0.97936,2042.4,2042.2,0.97939]
[1741554349170,0.97941,2042.2,2042.1,0.6249]
[1741554349968,0.97942,2042.2,2041.8,2.949]
[1741554350168,0.97946,2042.1,2042.0,0.97949]
[1741554350463,0.9795,2042.1,2041.9,0.97953]
[1741554350665,3.2078,2042.3,2041.7,1.2393]
[1741554350970,0.6319,2042.4,2042.0,0.97947]
[1741554350971,0.97941,2042.2,2042.0,0.97947]
[1741554351174,0.9795,2042.1,2041.9,0.97951]
[1741554351372,0.9795,2042.1,2042.0,0.97951]
[1741554351571,0.97939,2042.3,2042.1,0.97944]
[1741554351775,0.97943,2042.2,2042.0,0.97947]
[1741554352567,3.08021,2042.4,2041.8,3.2078]
[1741554352969,0.97949,2042.1,2041.9,0.97955]
[1741554353170,0.97949,2042.1,2042.0,0.97951]
[1741554353675,0.6319,2042.4,2041.8,3.2078]
[1741554353869,0.97944,2042.2,2042.1,0.97946]
[1741554354171,0.97947,2042.1,2042.0,0.97949]
[1741554354572,0.6319,2042.4,2041.8,3.2078]
[1741554354868,0.97954,2042.0,2041.9,0.97954]
[1741554355069,3.2078,2042.2,2041.8,3.2078]
[1741554355271,0.97955,2041.9,2041.8,4.18738]
[1741554355671,0.97952,2042.0,2041.9,0.97953]
[1741554356272,0.97947,2042.1,2042.0,0.97949]
[1741554356664,3.8228,2042.3,2041.8,3.2078]
[1741554356868,0.97949,2042.1,2042.0,0.97948]
[1741554357280,0.97949,2042.1,2041.9,0.97952]
[1741554357472,0.97949,2042.1,2042.0,0.97951]
[1741554358180,3.8228,2042.3,2041.8,3.2078]
[1741554358579,4.80219,2042.3,2042.2,0.97941]
[1741554358875,4.18719,2042.3,2042.2,0.97941]
[1741554359085,0.97942,2042.2,2042.1,0.97944]
[1741554359774,0.97941,2042.2,2042.1,0.97944]
[1741554359974,3.2078,2042.3,2041.9,0.97952]
[1741554360182,0.97952,2042.0,2041.9,0.97955]
[1741554360479,3.8754,2042.3,2041.8,3.2078]
[1741554360679,0.97949,2042.1,2042.0,0.9795]
[1741554360879,0.97949,2042.1,2042.0,0.97951]
[1741554361075,0.97955,2041.9,2041.7,1.2393]
[1741554361281,0.9797,2041.6,2041.5,0.00734035]
[1741554361484,3.2078,2042.0,2041.5,0.00734035]
[1741554361485,0.97968,2041.7,2041.5,0.98709035]
[1741554361686,0.97965,2041.7,2041.6,0.9797]
[1741554361979,0.97965,2041.7,2041.5,0.98707035]
[1741554362185,0.9797,2041.6,2041.5,0.00734035]
[1741554363086,3.8592,2041.8,2041.5,0.00734035]
[1741554363286,3.8592,2041.8,2041.6,0.97968]
[1741554363287,3.2078,2041.8,2041.6,0.97968]
[1741554363484,3.2078,2041.8,2041.7,0.97965]
[1741554363686,3.2078,2041.8,2041.5,0.00734035]
[1741554364089,0.6563,2041.9,2041.7,0.97965]
[1741554364288,0.97967,2041.7,2041.5,0.00734035]
[1741554364784,0.6563,2041.9,2041.5,0.00734035]
[1741554364785,0.9797,2041.6,2041.5,0.00734035]
[1741554364988,5.5048,2041.8,2040.8,3.2078]
[1741554365189,4.18763,2041.4,2041.2,0.97987]
[1741554365499,0.97985,2041.3,2041.1,0.9799]
[1741554365988,0.97985,2041.3,2040.8,6.05698976]
[1741554365989,0.6097,2041.5,2040.8,3.60680976]
[1741554366187,0.97993,2041.2,2041.0,0.98730035]
[1741554366394,3.21514035,2041.4,2041.0,0.00734035]
[1741554366592,0.97988,2041.3,2041.1,0.97991]
[1741554366894,0.97989,2041.2,2041.1,0.97991]
[1741554367294,0.97994,2041.1,2041.0,0.00734035]
[1741554367698,0.97994,2041.1,2041.0,0.98733035]
[1741554368392,4.54804035,2041.4,2041.0,0.00734035]
[1741554368797,0.97987,2041.3,2041.0,0.00734035]
[1741554369002,3.87154035,2041.4,2041.2,0.97989]
[1741554369201,3.87154035,2041.4,2041.0,0.00734035]
[1741554369398,0.9799,2041.2,2041.1,0.97992]
[1741554369600,0.97987,2041.3,2041.0,0.00734035]
[1741554369802,0.97987,2041.3,2041.2,0.97989]
[1741554370001,0.97987,2041.3,2041.0,0.00734035]
[1741554370300,3.87154035,2041.4,2041.3,0.97984]
[1741554370301,0.98713035,2041.4,2041.3,0.97984]
[1741554370601,0.97984,2041.3,2041.2,0.97985]
[1741554370801,0.98716035,2041.4,2041.3,0.97984]
[1741554370997,0.98716035,2041.4,2041.1,3.2078]
[1741554371193,0.98716035,2041.4,2041.2,0.97985]
[1741554371393,0.00734035,2041.4,2041.2,0.97985]
[1741554371593,0.98718035,2041.4,2041.2,0.97985]
[1741554371998,3.2078,2041.7,2041.3,2.949]
[1741554372208,0.97945,2042.2,2041.6,2.44925]
[1741554372501,0.6392,2042.3,2041.7,3.2078]
[1741554372698,0.97949,2042.1,2041.9,0.97952]
[1741554372900,0.97949,2042.1,2041.9,0.97954]
[1741554373199,0.00734035,2042.2,2041.8,0.6197]
[1741554373497,0.00734035,2042.2,2041.9,0.6426]
[1741554373697,0.00734035,2042.2,2042.1,4.18726]
[1741554373904,3.2078,2042.8,2042.7,0.97917]
[1741554374797,5.5048,2043.5,2043.0,0.97902]
[1741554374997,0.98639035,2043.0,2042.7,3.2078]
[1741554375299,0.98639035,2043.0,2042.8,0.97911]
[1741554375506,0.00734035,2043.0,2042.7,3.2078]
[1741554375698,0.98639035,2043.0,2042.8,0.97908]
[1741554375898,0.00734035,2043.0,2042.7,3.2078]
[1741554376093,0.00734035,2043.0,2042.5,0.64994035]
[1741554376397,0.97922,2042.6,2042.5,0.00734035]
[1741554377407,3.2078,2042.9,2042.8,0.97912]
[1741554377605,0.97915,2042.8,2042.6,1.6139]
[1741554377800,3.2078,2042.9,2042.6,0.6347]
[1741554378206,4.18689,2042.9,2042.7,0.97915]
[1741554378907,0.97917,2042.7,2042.6,0.6347]
[1741554379107,0.00734035,2043.0,2042.5,0.00734035]
[1741554379310,0.97922,2042.6,2042.5,0.00734035]
[1741554380503,3.2078,2042.9,2042.5,0.00734035]
[1741554380709,0.97922,2042.6,2042.5,0.98661035]
[1741554380910,3.2078,2042.9,2042.5,0.00734035]
[1741554381112,4.18689,2042.9,2042.7,0.97914]
[1741554381305,3.2078,2042.9,2042.5,0.00734035]
[1741554381511,0.98641035,2043.0,2042.8,0.97911]
[1741554381905,0.97911,2042.9,2042.7,0.97916]
[1741554382111,0.97915,2042.8,2042.6,0.9792]
[1741554382513,0.00734035,2043.0,2042.5,0.00734035]
[1741554382813,0.97914,2042.8,2042.6,0.97918]
[1741554383111,0.97915,2042.8,2042.6,0.97918]
[1741554384713,0.97915,2042.8,2042.7,0.97917]
[1741554385006,0.00734035,2043.0,2042.9,0.97907]
[1741554385605,3.5406,2043.4,2042.9,0.97907]
[1741554385606,0.6137,2043.4,2042.9,7.2078]
[1741554385805,3.2078,2043.5,2043.0,0.6345]
[1741554386006,0.9789,2043.3,2043.1,0.97895]
[1741554386215,0.9789,2043.3,2043.2,0.97893]
[1741554386608,3.2078,2043.5,2043.0,0.6345]
[1741554386807,0.97903,2043.0,2042.9,2.949]
[1741554387014,5.65537,2043.1,2042.5,3.21514035]
[1741554387306,0.97922,2042.6,2042.5,4.19436035]
[1741554387512,0.6137,2042.9,2042.6,0.97922]
[1741554387713,0.97922,2042.6,2042.5,4.19439035]
[1741554388011,0.97922,2042.6,2042.5,0.00734035]
[1741554388515,0.97919,2042.7,2042.6,0.97921]
[1741554388808,0.97917,2042.7,2042.6,0.97921]
[1741554389014,0.97914,2042.8,2042.6,0.97921]
[1741554389313,2.2341,2042.9,2042.7,0.97917]
[1741554389519,0.6137,2042.9,2042.7,0.97915]
[1741554389813,0.97912,2042.8,2042.5,0.00734035]
[1741554390115,0.6137,2042.9,2042.7,0.97917]
[1741554390316,1.59281,2042.9,2042.7,0.97917]
[1741554390615,0.97912,2042.8,2042.7,0.97917]
[1741554390811,0.6137,2042.9,2042.5,0.00734035]
[1741554391007,0.97918,2042.7,2042.5,0.00734035]
[1741554391214,0.97917,2042.7,2042.6,0.97922]
[1741554391413,0.97913,2042.8,2042.7,0.97916]
[1741554391609,0.97922,2042.6,2042.5,0.00734035]
[1741554392808,0.97922,2042.6,2041.4,3.6974]
[1741554392809,6.295,2042.6,2041.4,3.6974]
[1741554393005,6.295,2042.6,2041.3,2.949]
[1741554393006,0.97976,2041.5,2041.3,0.97981]
[1741554393206,3.2078,2041.5,2041.0,3.2078]
[1741554393716,0.97991,2041.2,2041.0,3.2078]
[1741554394016,0.97991,2041.2,2040.5,2.7854]
[1741554394017,0.97999,2041.0,2040.9,0.00734035]
[1741554394516,0.98026,2040.5,2040.1,3.8497]
[1741554394722,0.9803,2040.4,2040.1,3.2078]
[1741554395014,3.2078,2040.9,2040.1,3.2078]
[1741554395218,0.98023,2040.5,2040.1,3.2078]
[1741554395518,0.98021,2040.6,2040.1,3.2078]
[1741554395715,3.2078,2040.9,2040.1,3.21514035]
[1741554396014,0.6663,2041.0,2040.4,3.2078]
[1741554396314,0.98,2041.0,2040.7,3.2078]
[1741554396518,0.98005,2040.9,2040.7,3.2078]
[1741554396715,0.00734035,2041.3,2040.7,3.2078]
[1741554396920,0.97995,2041.1,2040.7,3.2078]
[1741554397124,0.00734035,2041.3,2040.8,0.6381]
[1741554397323,0.98002,2041.0,2040.8,0.6381]
[1741554397517,0.98003,2040.9,2040.8,0.6381]
[1741554397916,0.00734035,2041.3,2040.8,0.6381]
[1741554398113,0.98003,2040.9,2040.8,0.6381]
[1741554398322,0.98008,2040.8,2040.7,3.2078]
[1741554398623,0.98013,2040.7,2040.6,2.295]
[1741554400321,0.98023,2040.5,2040.4,6.1419]
[1741554400821,2.45027,2040.8,2040.4,3.2078]
[1741554401126,2.45045,2040.6,2040.1,8.46014035]
[1741554401321,0.98037,2040.2,2040.1,0.00734035]
[1741554402123,0.98037,2040.2,2040.1,3.5e-07]
[1741554402318,0.98037,2040.2,2039.8,3.8382]
[1741554402319,2.45105,2040.1,2039.2,3.2078]
[1741554402519,0.9808,2039.3,2039.2,3.2078]
[1741554403022,0.9808,2039.3,2039.2,3.45777055]
[1741554403221,0.9808,2039.3,2039.2,0.24997055]
[1741554403419,3.2078,2039.8,2039.2,0.24997055]
[1741554403612,0.98077,2039.4,2039.2,0.24997055]
[1741554403811,0.00734035,2039.5,2039.2,0.24997055]
[1741554404011,0.00734035,2039.5,2039.0,0.00734035]
[1741554404012,0.9809,2039.1,2039.0,0.00734035]
[1741554404221,0.9809,2039.1,2038.3,2.949]
[1741554404222,0.98115,2038.6,2038.3,2.949]
[1741554404412,3.2078,2039.2,2038.4,3.2078]
[1741554404612,3.2078,2039.2,2038.7,3.2078]
[1741554404817,0.98104,2038.8,2038.7,3.2078]
[1741554405221,0.98111,2038.7,2038.5,2.949]
[1741554405419,5.66002,2039.2,2038.5,2.949]
[1741554405616,0.98105,2038.8,2038.5,2.949]
[1741554405813,0.9811,2038.7,2038.5,2.949]
[1741554406028,0.98107,2038.8,2038.5,2.949]
[1741554406220,3.2078,2039.0,2038.5,2.949]
[1741554406418,0.98106,2038.8,2038.5,2.949]
[1741554406618,0.98101,2038.9,2038.5,2.949]
[1741554407027,3.2078,2039.3,2038.7,3.2078]
[1741554407221,0.00734035,2039.5,2038.8,2.9503]
[1741554407421,0.98091,2039.1,2038.8,2.9503]
[1741554407621,3.2078,2039.4,2038.8,2.297]
[1741554407823,0.00734035,2039.5,2039.0,3.2078]
[1741554408422,0.98096,2039.0,2038.8,2.297]
[1741554408627,0.98093,2039.1,2038.8,2.297]
[1741554408824,0.98099,2039.0,2038.7,3.2078]
[1741554409328,0.98098,2039.0,2038.7,3.2078]
[1741554410221,3.85624035,2039.5,2038.7,3.2078]
[1741554410426,3.85624035,2039.5,2038.7,5.66047]
[1741554410427,3.21514035,2039.5,2038.7,5.66047]
[1741554410621,3.21514035,2039.5,2039.3,0.98079]
[1741554410825,0.98077,2039.4,2039.1,0.98087]
[1741554411025,4.19587035,2039.5,2039.0,3.2078]
[1741554411320,0.98077,2039.4,2039.1,0.9809]
[1741554411522,3.21514035,2039.5,2038.7,6.1568]
[1741554411827,3.2078,2039.2,2038.6,2.949]
[1741554412027,0.98101,2038.9,2038.6,3.93011]
[1741554412227,0.98101,2038.9,2038.6,0.98111]
[1741554412527,2.45225,2039.1,2038.3,2.949]
[1741554412726,3.2078,2038.8,2038.2,3.2078]
[1741554413021,0.98124,2038.4,2038.2,4.18912]
[1741554413227,0.98121,2038.5,2038.2,4.18912]
[1741554413430,6.1831,2039.1,2038.6,0.98114]
[1741554413731,6.1831,2039.1,2038.6,0.98113]
[1741554414029,0.98109,2038.7,2038.4,0.98124]
[1741554414427,0.98115,2038.6,2038.4,0.9812]
[1741554414621,0.98115,2038.6,2038.2,3.2078]
[1741554414829,0.98116,2038.6,2038.4,0.98121]
[1741554415128,3.2078,2038.8,2038.2,3.2078]
[1741554415433,3.8811,2039.1,2038.2,5.66103]
[1741554415932,3.8811,2039.1,2038.5,3.2078]
[1741554416134,0.98111,2038.7,2038.5,4.18897]
[1741554416329,6.3334,2039.1,2038.5,3.2078]
[1741554416631,2.45237,2039.0,2038.5,3.2078]
[1741554416826,0.98113,2038.7,2038.5,4.18897]
[1741554417128,3.8811,2039.1,2038.5,3.2078]
[1741554417330,0.98104,2038.9,2038.5,3.2078]
[1741554417530,3.8811,2039.1,2038.8,0.98104]
[1741554417827,3.8811,2039.1,2038.5,3.2078]
[1741554418131,3.2078,2039.1,2039.0,0.98095]
[1741554418827,3.2078,2039.1,2038.2,8.4598]
[1741554419032,0.98102,2038.9,2038.7,0.98106]
[1741554419235,0.98102,2038.9,2038.8,0.98104]
[1741554419532,3.2078,2039.1,2038.3,2.45322]
[1741554419727,0.639,2039.0,2038.6,0.98112]
[1741554420028,0.98102,2038.9,2038.5,3.2078]
[1741554420229,3.2078,2039.1,2038.9,0.98099]
[1741554420526,3.2078,2039.1,2039.0,0.98095]
[1741554421225,0.00734035,2039.5,2038.8,3.2078]
[1741554421432,0.00734035,2039.5,2038.9,2.45249]
[1741554421625,2.45914035,2039.5,2039.0,0.98093]
[1741554421826,0.98088,2039.2,2039.0,0.98093]
[1741554422135,0.98094,2039.1,2038.9,0.98098]
[1741554422527,5.65972,2039.4,2038.9,0.98098]
[1741554422829,5.65972,2039.4,2038.8,3.8217]
[1741554422830,3.2078,2039.4,2038.8,3.8217]
[1741554423036,0.98096,2039.0,2038.9,0.98098]
[1741554423229,2.45205,2039.3,2038.8,4.18882]
[1741554423427,0.98099,2038.9,2038.8,3.2078]
[1741554423932,0.98099,2038.9,2038.8,4.18884]
[1741554424133,0.98099,2038.9,2038.8,3.2078]
[1741554424530,3.8218,2039.1,2038.2,0.98132]
[1741554424832,3.2078,2038.7,2038.2,0.98133]
[1741554425035,3.2078,2038.7,2038.1,3.2078]
[1741554425625,5.66065,2038.7,2037.9,1.61904]
[1741554425828,5.66065,2038.7,2037.5,2.949]
[1741554425829,2.45334,2038.2,2037.4,3.2078]
[1741554426029,0.98167,2037.5,2037.4,3.2078]
[1741554426331,0.00735853,2038.0,2037.4,5.66208]
[1741554426531,0.00735853,2038.0,2037.9,0.98148]
[1741554426832,4.18877,2039.0,2038.3,2.45321]
[1741554427135,3.2078,2039.0,2038.9,0.98099]
[1741554427331,1.8886,2039.2,2038.5,3.2078]
[1741554427835,0.98098,2039.0,2038.7,0.98107]
[1741554428038,0.98102,2038.9,2038.7,0.98107]
[1741554428234,0.98095,2039.0,2038.8,0.98103]
[1741554428430,0.98095,2039.0,2038.6,0.00735853]
[1741554428431,0.00735853,2039.1,2038.6,0.00735853]
[1741554428636,0.98102,2038.9,2038.6,0.98845853]
[1741554428930,0.98102,2038.9,2038.6,0.00735853]
[1741554429129,0.98105,2038.8,2038.6,0.98847853]
[1741554429331,0.98109,2038.7,2038.6,0.00735853]
[1741554429532,3.2078,2039.0,2038.6,0.00735853]
[1741554429731,0.98109,2038.7,2038.6,0.00735853]
[1741554430636,3.2078,2039.0,2038.6,0.00735853]
[1741554430939,0.98106,2038.8,2038.6,0.98847853]
[1741554431139,0.98102,2038.9,2038.6,0.00735853]
[1741554431330,0.98102,2038.9,2038.7,0.98108]
[1741554431531,0.981,2038.9,2038.7,0.98106]
[1741554431836,4.18876,2039.0,2038.8,0.98104]
[1741554432137,0.981,2038.9,2038.7,0.98107]
[1741554433032,0.98108,2038.8,2038.6,0.98847853]
[1741554433229,3.2078,2039.0,2038.6,0.00735853]
[1741554433436,0.98101,2038.9,2038.7,0.98106]
[1741554433631,0.00735853,2039.1,2038.6,0.00735853]
[1741554433831,0.00735853,2039.1,2039.0,0.98095]
[1741554434334,0.00735853,2039.1,2038.8,3.2078]
[1741554434540,0.00735853,2039.1,2038.7,0.6627]
[1741554435041,0.00735853,2039.1,2038.6,0.00735853]
[1741554435042,0.98109,2038.7,2038.6,0.00735853]
[1741554435435,4.18889,2038.7,2038.6,0.00735853]
[1741554436245,4.18889,2038.7,2037.8,6.065]
[1741554436246,0.98143,2038.0,2037.6,2.949]
[1741554436542,0.9814,2038.1,2037.9,0.98148]
[1741554436737,0.98145,2038.0,2037.8,0.98152]
[1741554437044,6.31278,2038.3,2037.6,0.98159]
[1741554437247,3.8595,2038.3,2037.7,0.98155]
[1741554437537,0.00735853,2038.2,2037.5,3.8227]
[1741554438037,0.00735853,2038.2,2038.0,0.98138]
[1741554438241,0.00735853,2038.2,2037.5,3.8227]
[1741554438445,0.98168,2037.5,2037.3,0.98175]
[1741554438642,3.2078,2038.0,2037.4,0.98168]
[1741554438847,0.9816,2037.7,2037.2,3.2078]
[1741554439039,3.0399,2037.9,2037.5,0.98167]
[1741554439245,3.0399,2037.9,2037.4,0.98168]
[1741554439544,3.0399,2037.9,2037.6,0.9816]
[1741554439739,0.98154,2037.8,2037.2,3.2078]
[1741554440137,0.6639,2037.9,2037.2,3.2078]
[1741554440349,4.18925,2038.0,2037.3,2.45442]
[1741554440549,3.2078,2038.0,2037.5,3.2078]
[1741554441049,0.98156,2037.8,2037.6,0.9816]
[1741554441351,0.9816,2037.7,2037.5,3.2078]
[1741554441550,3.2078,2038.0,2037.7,0.98155]
[1741554441751,0.98168,2037.5,2037.3,0.98174]
[1741554442549,3.8602,2038.1,2037.2,5.66234]
[1741554442742,3.8602,2038.1,2037.2,6.1568]
[1741554442942,0.00735853,2038.2,2037.8,3.2078]
[1741554443139,3.2078,2038.1,2037.6,2.949]
[1741554443339,0.00735853,2038.2,2037.6,2.45403]
[1741554443544,0.00735853,2038.2,2037.7,0.6604]
[1741554443739,0.98872853,2038.2,2037.9,0.98144]